[Event "Early-Titled-Tuesday-Blitz-February-20-2024"]
[Site "Chess.com"]
[Date "2024.02.20"]
[Round "9"]
[White "fighter2jz"]
[Black "sergoy"]
[Result "1/2-1/2"]
[WhiteElo "2818"]
[BlackElo "2998"]
[TimeControl "180+1"]
[EndTime "9:45:50 PST"]
[Termination "Game drawn by repetition"]

1. e4 {[%clk 0:03:00.9]} 1... c5 {[%clk 0:02:58.7]} 2. Nf3 {[%clk 0:03:00.3]}
2... e6 {[%clk 0:02:57.1]} 3. d4 {[%clk 0:02:55.1]} 3... cxd4 {[%clk 0:02:58]}
4. Nxd4 {[%clk 0:02:55.8]} 4... a6 {[%clk 0:02:57.4]} 5. c4 {[%clk 0:02:53.8]}
5... Nf6 {[%clk 0:02:56.9]} 6. Nc3 {[%clk 0:02:54.5]} 6... Bb4 {[%clk
0:02:57.5]} 7. Qd3 {[%clk 0:02:49.4]} 7... O-O {[%clk 0:02:56.7]} 8. Be2 {[%clk
0:02:47.4]} 8... d6 {[%clk 0:02:53.3]} 9. O-O {[%clk 0:02:45.9]} 9... Nbd7
{[%clk 0:02:53.5]} 10. f3 {[%clk 0:02:02.3]} 10... Qc7 {[%clk 0:02:50.8]} 11. a3
{[%clk 0:01:24.3]} 11... Ne5 {[%clk 0:02:46.2]} 12. Qc2 {[%clk 0:01:23.3]} 12...
Bc5 {[%clk 0:02:29.2]} 13. Be3 {[%clk 0:01:09.1]} 13... Nxc4 {[%clk 0:02:01.6]}
14. Bxc4 {[%clk 0:01:04.6]} 14... Bxd4 {[%clk 0:02:02.2]} 15. Bxd4 {[%clk
0:01:05.3]} 15... Qxc4 {[%clk 0:02:02.8]} 16. Bxf6 {[%clk 0:01:05.8]} 16... gxf6
{[%clk 0:02:03.7]} 17. Qd2 {[%clk 0:01:02.2]} 17... Qc5+ {[%clk 0:01:56.8]} 18.
Kh1 {[%clk 0:01:02.2]} 18... Bd7 {[%clk 0:01:56.6]} 19. Rac1 {[%clk 0:00:56.9]}
19... Qh5 {[%clk 0:01:28.3]} 20. f4 {[%clk 0:00:36.7]} 20... Bc6 {[%clk
0:01:21.5]} 21. Rf3 {[%clk 0:00:36.6]} 21... Kh8 {[%clk 0:01:21.5]} 22. Qd4
{[%clk 0:00:31.6]} 22... Qh6 {[%clk 0:01:12.5]} 23. Rcf1 {[%clk 0:00:31.5]}
23... Rg8 {[%clk 0:01:10.8]} 24. Rh3 {[%clk 0:00:30.8]} 24... Qg7 {[%clk
0:01:10.1]} 25. Rg3 {[%clk 0:00:30.3]} 25... Qh6 {[%clk 0:01:10.5]} 26. Rh3
{[%clk 0:00:25.3]} 26... Qg7 {[%clk 0:01:05.4]} 27. Rg3 {[%clk 0:00:25.4]} 27...
Qh6 {[%clk 0:00:58.9]} 28. Rh3 {[%clk 0:00:25.3]} 1/2-1/2

[Event "Early-Titled-Tuesday-Blitz-February-20-2024"]
[Site "Chess.com"]
[Date "2024.02.20"]
[Round "9"]
[White "lachesisQ"]
[Black "Bauman_Guy"]
[Result "1-0"]
[WhiteElo "3051"]
[BlackElo "2917"]
[TimeControl "180+1"]
[EndTime "9:45:58 PST"]
[Termination "lachesisQ won by resignation"]

1. e4 {[%clk 0:03:00.9]} 1... c5 {[%clk 0:02:59.6]} 2. Nf3 {[%clk 0:03:01.1]}
2... d6 {[%clk 0:02:59.9]} 3. d4 {[%clk 0:03:01.8]} 3... Nf6 {[%clk 0:03:00.2]}
4. Nc3 {[%clk 0:03:01.9]} 4... cxd4 {[%clk 0:03:00.4]} 5. Nxd4 {[%clk
0:03:02.8]} 5... a6 {[%clk 0:03:00.9]} 6. Bg5 {[%clk 0:03:02.4]} 6... Nbd7
{[%clk 0:03:01]} 7. Qf3 {[%clk 0:03:02.3]} 7... Qa5 {[%clk 0:02:58.9]} 8. h4
{[%clk 0:03:00.2]} 8... h6 {[%clk 0:02:58.4]} 9. Bd2 {[%clk 0:03:00.1]} 9... g6
{[%clk 0:02:56.1]} 10. O-O-O {[%clk 0:02:47]} 10... Bg7 {[%clk 0:02:55.3]} 11.
Kb1 {[%clk 0:02:47.4]} 11... O-O {[%clk 0:02:51.4]} 12. Qe2 {[%clk 0:02:45.9]}
12... Qc7 {[%clk 0:02:46.5]} 13. g4 {[%clk 0:02:45.3]} 13... h5 {[%clk
0:02:22.6]} 14. gxh5 {[%clk 0:02:44.6]} 14... Nxh5 {[%clk 0:02:21]} 15. Nd5
{[%clk 0:02:44.8]} 15... Qd8 {[%clk 0:02:21.2]} 16. Bg5 {[%clk 0:02:44.3]} 16...
Ndf6 {[%clk 0:02:20]} 17. Rg1 {[%clk 0:02:42.1]} 17... Nxd5 {[%clk 0:02:04.2]}
18. exd5 {[%clk 0:02:43]} 18... Qb6 {[%clk 0:02:00.8]} 19. c3 {[%clk 0:02:37.5]}
19... a5 {[%clk 0:01:47.1]} 20. Bg2 {[%clk 0:02:14.1]} 20... a4 {[%clk
0:01:16.9]} 21. Bf3 {[%clk 0:02:13]} 21... a3 {[%clk 0:01:17]} 22. Bxh5 {[%clk
0:02:13]} 22... gxh5 {[%clk 0:01:17.9]} 23. b3 {[%clk 0:02:06.6]} 23... Bg4
{[%clk 0:00:57]} 24. Rxg4 {[%clk 0:01:55.9]} 24... hxg4 {[%clk 0:00:55.4]} 25.
Nf5 {[%clk 0:01:35.1]} 25... f6 {[%clk 0:00:15.9]} 26. Bh6 {[%clk 0:01:30.7]}
26... Bxh6 {[%clk 0:00:07.1]} 27. Qxg4+ {[%clk 0:01:28.6]} 27... Kh8 {[%clk
0:00:02.8]} 28. Qh5 {[%clk 0:01:13.5]} 1-0

[Event "Early-Titled-Tuesday-Blitz-February-20-2024"]
[Site "Chess.com"]
[Date "2024.02.20"]
[Round "9"]
[White "Jojo_898"]
[Black "ActorXu"]
[Result "0-1"]
[WhiteElo "2497"]
[BlackElo "2830"]
[TimeControl "180+1"]
[EndTime "9:46:02 PST"]
[Termination "ActorXu won by resignation"]

1. e4 {[%clk 0:03:00.9]} 1... c5 {[%clk 0:02:57.3]} 2. Nf3 {[%clk 0:03:00.5]}
2... d6 {[%clk 0:02:57]} 3. c3 {[%clk 0:03:00.4]} 3... Nf6 {[%clk 0:02:56.6]} 4.
Bd3 {[%clk 0:03:00.5]} 4... Nc6 {[%clk 0:02:54.6]} 5. h3 {[%clk 0:02:58.9]} 5...
g6 {[%clk 0:02:54.3]} 6. O-O {[%clk 0:02:59]} 6... Bg7 {[%clk 0:02:54.8]} 7. Bc2
{[%clk 0:02:59.3]} 7... e5 {[%clk 0:02:55.5]} 8. d4 {[%clk 0:02:58.5]} 8... cxd4
{[%clk 0:02:55]} 9. cxd4 {[%clk 0:02:58.8]} 9... exd4 {[%clk 0:02:55.2]} 10.
Nxd4 {[%clk 0:02:58.4]} 10... O-O {[%clk 0:02:53.4]} 11. Nxc6 {[%clk 0:02:52.5]}
11... bxc6 {[%clk 0:02:53.2]} 12. Nc3 {[%clk 0:02:53.2]} 12... d5 {[%clk
0:02:52.8]} 13. exd5 {[%clk 0:02:47]} 13... Nxd5 {[%clk 0:02:52.6]} 14. Bd2
{[%clk 0:02:31.2]} 14... Rb8 {[%clk 0:02:48.6]} 15. Nxd5 {[%clk 0:02:26.8]}
15... cxd5 {[%clk 0:02:47.1]} 16. Bb3 {[%clk 0:02:12]} 16... Bxb2 {[%clk
0:02:44]} 17. Rb1 {[%clk 0:02:12.5]} 17... Bg7 {[%clk 0:02:44]} 18. Bf4 {[%clk
0:02:12.8]} 18... Rb5 {[%clk 0:02:39.3]} 19. a4 {[%clk 0:01:59.3]} 19... Rc5
{[%clk 0:02:33.2]} 20. Qd2 {[%clk 0:01:47.2]} 20... d4 {[%clk 0:02:32.3]} 21.
Rbc1 {[%clk 0:01:44]} 21... Rxc1 {[%clk 0:02:30.7]} 22. Rxc1 {[%clk 0:01:44.7]}
22... Be6 {[%clk 0:02:23.6]} 23. Qd3 {[%clk 0:01:39.1]} 23... Bxb3 {[%clk
0:02:17.3]} 24. Qxb3 {[%clk 0:01:38.8]} 24... Qf6 {[%clk 0:02:11.2]} 25. Bd2
{[%clk 0:01:29.8]} 25... Re8 {[%clk 0:02:09.9]} 26. Rc7 {[%clk 0:01:24.5]} 26...
h5 {[%clk 0:01:43.2]} 27. Kf1 {[%clk 0:00:56.4]} 27... a6 {[%clk 0:01:18.2]} 28.
a5 {[%clk 0:00:42.1]} 28... h4 {[%clk 0:01:06]} 29. Qb6 {[%clk 0:00:28.1]} 29...
Qe5 {[%clk 0:01:02.1]} 30. Qb3 {[%clk 0:00:24.1]} 30... Qxc7 {[%clk 0:00:56]}
0-1

[Event "Early-Titled-Tuesday-Blitz-February-20-2024"]
[Site "Chess.com"]
[Date "2024.02.20"]
[Round "9"]
[White "ajeale2"]
[Black "Christ_is_alive"]
[Result "1-0"]
[WhiteElo "2486"]
[BlackElo "2262"]
[TimeControl "180+1"]
[EndTime "9:46:03 PST"]
[Termination "ajeale2 won by resignation"]

1. c4 {[%clk 0:03:00.9]} 1... g6 {[%clk 0:02:55.7]} 2. Nf3 {[%clk 0:03:00.8]}
2... Bg7 {[%clk 0:02:55.8]} 3. g3 {[%clk 0:03:01.6]} 3... Nf6 {[%clk 0:02:56.2]}
4. Bg2 {[%clk 0:03:02.3]} 4... O-O {[%clk 0:02:56.9]} 5. d4 {[%clk 0:03:02.9]}
5... d6 {[%clk 0:02:57.5]} 6. O-O {[%clk 0:03:03.5]} 6... Nc6 {[%clk 0:02:57.9]}
7. d5 {[%clk 0:03:01.3]} 7... Na5 {[%clk 0:02:53.8]} 8. Nbd2 {[%clk 0:03:00.5]}
8... c5 {[%clk 0:02:52.4]} 9. e4 {[%clk 0:02:57.2]} 9... a6 {[%clk 0:02:48.4]}
10. Re1 {[%clk 0:02:54]} 10... b5 {[%clk 0:02:46.2]} 11. Bf1 {[%clk 0:02:45.9]}
11... Rb8 {[%clk 0:02:41.2]} 12. Rb1 {[%clk 0:02:26.1]} 12... e6 {[%clk
0:02:23.5]} 13. b3 {[%clk 0:02:21.7]} 13... exd5 {[%clk 0:02:21.3]} 14. cxd5
{[%clk 0:02:19.8]} 14... Re8 {[%clk 0:02:20.9]} 15. Bb2 {[%clk 0:02:16.3]} 15...
Ng4 {[%clk 0:01:59.4]} 16. Bxg7 {[%clk 0:02:14.4]} 16... Kxg7 {[%clk 0:02:00.3]}
17. Qc2 {[%clk 0:02:13.6]} 17... Nb7 {[%clk 0:01:54.7]} 18. h3 {[%clk
0:02:08.6]} 18... Ne5 {[%clk 0:01:54.1]} 19. Nxe5 {[%clk 0:02:04.3]} 19... dxe5
{[%clk 0:01:53.5]} 20. Rbd1 {[%clk 0:01:58]} 20... Qf6 {[%clk 0:01:32.7]} 21.
Re3 {[%clk 0:01:54.2]} 21... Bd7 {[%clk 0:01:19.9]} 22. Qb2 {[%clk 0:01:52.3]}
22... Nd6 {[%clk 0:01:13.9]} 23. Rf3 {[%clk 0:01:45.7]} 23... Qg5 {[%clk
0:01:11.1]} 24. Rc3 {[%clk 0:01:40.9]} 24... Rbc8 {[%clk 0:01:05.2]} 25. Rdc1
{[%clk 0:01:38.3]} 25... c4 {[%clk 0:00:52.4]} 26. bxc4 {[%clk 0:01:32.5]} 26...
bxc4 {[%clk 0:00:52.6]} 27. h4 {[%clk 0:01:29.4]} 27... Qh6 {[%clk 0:00:46.6]}
28. Bxc4 {[%clk 0:01:25.5]} 28... g5 {[%clk 0:00:42.9]} 29. hxg5 {[%clk
0:01:24.9]} 29... Qxg5 {[%clk 0:00:43.8]} 30. Bf1 {[%clk 0:01:21.3]} 30... h5
{[%clk 0:00:36.6]} 31. Rxc8 {[%clk 0:01:20.1]} 31... Bxc8 {[%clk 0:00:37.1]} 32.
Bg2 {[%clk 0:01:13.3]} 32... h4 {[%clk 0:00:36.3]} 33. Nf3 {[%clk 0:01:13.3]}
33... Qg4 {[%clk 0:00:31]} 34. Nxe5 {[%clk 0:01:12.4]} 34... Qe2 {[%clk
0:00:18.4]} 35. Qxe2 {[%clk 0:01:08.1]} 1-0

[Event "Early-Titled-Tuesday-Blitz-February-20-2024"]
[Site "Chess.com"]
[Date "2024.02.20"]
[Round "9"]
[White "K_A_S_T_O_R"]
[Black "Egor_Koshulyan"]
[Result "0-1"]
[WhiteElo "2816"]
[BlackElo "2626"]
[TimeControl "180+1"]
[EndTime "9:46:04 PST"]
[Termination "Egor_Koshulyan won by resignation"]

1. e4 {[%clk 0:03:00.9]} 1... c5 {[%clk 0:02:56.3]} 2. Nf3 {[%clk 0:03:00.8]}
2... Nc6 {[%clk 0:02:54]} 3. d4 {[%clk 0:03:00.9]} 3... cxd4 {[%clk 0:02:54.9]}
4. Nxd4 {[%clk 0:03:01.5]} 4... Nf6 {[%clk 0:02:55.4]} 5. Nc3 {[%clk 0:03:01.5]}
5... e5 {[%clk 0:02:55.3]} 6. Ndb5 {[%clk 0:03:01.5]} 6... d6 {[%clk 0:02:55.8]}
7. Bg5 {[%clk 0:03:02.1]} 7... a6 {[%clk 0:02:56.3]} 8. Na3 {[%clk 0:03:02.5]}
8... Be6 {[%clk 0:02:56.9]} 9. Nc4 {[%clk 0:03:01.7]} 9... Rb8 {[%clk
0:02:56.2]} 10. Bxf6 {[%clk 0:02:59.8]} 10... Qxf6 {[%clk 0:02:56.3]} 11. Nb6
{[%clk 0:02:58.2]} 11... Be7 {[%clk 0:02:48.3]} 12. Ncd5 {[%clk 0:02:57.1]}
12... Qg6 {[%clk 0:02:48.5]} 13. Qd3 {[%clk 0:02:48.3]} 13... O-O {[%clk
0:02:45.1]} 14. c3 {[%clk 0:02:39.3]} 14... Bd8 {[%clk 0:02:42.5]} 15. g3 {[%clk
0:02:34.8]} 15... f5 {[%clk 0:02:30.8]} 16. Bg2 {[%clk 0:02:32.3]} 16... Bxb6
{[%clk 0:02:25.7]} 17. Nxb6 {[%clk 0:02:30.7]} 17... f4 {[%clk 0:02:26.3]} 18.
O-O {[%clk 0:02:13.9]} 18... Rbd8 {[%clk 0:02:21.1]} 19. Rad1 {[%clk 0:02:04.7]}
19... Bxa2 {[%clk 0:02:15.1]} 20. b4 {[%clk 0:01:57.2]} 20... Be6 {[%clk
0:02:08.6]} 21. Bf3 {[%clk 0:01:52.4]} 21... Bh3 {[%clk 0:01:55.1]} 22. Rfe1
{[%clk 0:01:40.2]} 22... Rf7 {[%clk 0:01:45.1]} 23. Kh1 {[%clk 0:01:36.1]} 23...
fxg3 {[%clk 0:01:39.4]} 24. fxg3 {[%clk 0:01:35.1]} 24... Rdf8 {[%clk 0:01:40]}
25. Be2 {[%clk 0:01:13.2]} 25... Rf2 {[%clk 0:01:32.6]} 26. Rg1 {[%clk
0:01:12.5]} 26... Kh8 {[%clk 0:01:27.5]} 27. g4 {[%clk 0:00:49.9]} 27... Qh6
{[%clk 0:01:18.9]} 28. Qd2 {[%clk 0:00:40.4]} 28... Qh4 {[%clk 0:01:08.6]} 29.
Qe1 {[%clk 0:00:20.1]} 29... Bf1 {[%clk 0:01:03.1]} 0-1

[Event "Early-Titled-Tuesday-Blitz-February-20-2024"]
[Site "Chess.com"]
[Date "2024.02.20"]
[Round "9"]
[White "Lucky_Puncher"]
[Black "EdmundPlayer"]
[Result "1-0"]
[WhiteElo "2499"]
[BlackElo "2281"]
[TimeControl "180+1"]
[EndTime "9:46:04 PST"]
[Termination "Lucky_Puncher won on time"]

1. d4 {[%clk 0:03:00.9]} 1... d5 {[%clk 0:02:57.1]} 2. c4 {[%clk 0:02:58.3]}
2... c6 {[%clk 0:02:55.7]} 3. Nc3 {[%clk 0:02:58.5]} 3... Nf6 {[%clk 0:02:54.1]}
4. Nf3 {[%clk 0:02:58.9]} 4... e6 {[%clk 0:02:52.3]} 5. Bg5 {[%clk 0:02:57.6]}
5... h6 {[%clk 0:02:49]} 6. Bxf6 {[%clk 0:02:56.6]} 6... Qxf6 {[%clk 0:02:47.8]}
7. e4 {[%clk 0:02:57.1]} 7... dxe4 {[%clk 0:02:36.8]} 8. Nxe4 {[%clk 0:02:58]}
8... Bb4+ {[%clk 0:02:33.8]} 9. Nc3 {[%clk 0:02:55.9]} 9... c5 {[%clk
0:02:01.2]} 10. a3 {[%clk 0:02:45.3]} 10... cxd4 {[%clk 0:00:52.4]} 11. Qxd4
{[%clk 0:02:33.9]} 11... Bxc3+ {[%clk 0:00:49.3]} 12. bxc3 {[%clk 0:02:33.6]}
12... Nc6 {[%clk 0:00:46.1]} 13. Qxf6 {[%clk 0:02:32.6]} 13... gxf6 {[%clk
0:00:46.5]} 14. Bd3 {[%clk 0:02:32.4]} 14... Ne5 {[%clk 0:00:43.7]} 15. Nxe5
{[%clk 0:02:32.1]} 15... fxe5 {[%clk 0:00:44.6]} 16. Ke2 {[%clk 0:02:31.1]}
16... Bd7 {[%clk 0:00:37.4]} 17. Be4 {[%clk 0:02:29.1]} 17... Rc8 {[%clk
0:00:30.7]} 18. Bxb7 {[%clk 0:01:50.5]} 18... Rxc4 {[%clk 0:00:29.9]} 19. Rhc1
{[%clk 0:01:48.5]} 19... Ke7 {[%clk 0:00:28.8]} 20. Rab1 {[%clk 0:01:46.6]}
20... Rb8 {[%clk 0:00:26.3]} 21. f3 {[%clk 0:01:44.4]} 21... Ra4 {[%clk
0:00:20.8]} 22. c4 {[%clk 0:01:41.4]} 22... Kd6 {[%clk 0:00:11.4]} 23. Rc3
{[%clk 0:01:38]} 23... Kc5 {[%clk 0:00:09.9]} 24. g4 {[%clk 0:01:35.1]} 24...
Bc6 {[%clk 0:00:10]} 25. Bxc6 {[%clk 0:01:30.7]} 25... Rxb1 {[%clk 0:00:06.1]}
26. Bxa4 {[%clk 0:01:30.8]} 26... Rb2+ {[%clk 0:00:06.3]} 27. Rc2 {[%clk
0:01:28.8]} 27... Rxc2+ {[%clk 0:00:04.3]} 28. Bxc2 {[%clk 0:01:29.7]} 28...
Kxc4 {[%clk 0:00:05]} 29. h4 {[%clk 0:01:30.2]} 29... a5 {[%clk 0:00:04]} 30. g5
{[%clk 0:01:29.8]} 30... h5 {[%clk 0:00:02]} 31. Kd2 {[%clk 0:01:24.9]} 31...
Kd4 {[%clk 0:00:02.1]} 32. Bh7 {[%clk 0:01:23.5]} 32... Kd5 {[%clk 0:00:01.7]}
33. Bg8 {[%clk 0:01:23.4]} 1-0

[Event "Early-Titled-Tuesday-Blitz-February-20-2024"]
[Site "Chess.com"]
[Date "2024.02.20"]
[Round "9"]
[White "yuriydovzik"]
[Black "Attacker_2006"]
[Result "0-1"]
[WhiteElo "2155"]
[BlackElo "2386"]
[TimeControl "180+1"]
[EndTime "9:46:09 PST"]
[Termination "Attacker_2006 won by resignation"]

1. d4 {[%clk 0:02:56.6]} 1... d5 {[%clk 0:02:59.7]} 2. g3 {[%clk 0:02:54]} 2...
Nf6 {[%clk 0:02:57.5]} 3. Bg2 {[%clk 0:02:53.4]} 3... g6 {[%clk 0:02:52.7]} 4.
Nf3 {[%clk 0:02:51.4]} 4... Bg7 {[%clk 0:02:53.2]} 5. O-O {[%clk 0:02:50.6]}
5... O-O {[%clk 0:02:53.6]} 6. Nbd2 {[%clk 0:02:48.8]} 6... Nbd7 {[%clk
0:02:42.9]} 7. e3 {[%clk 0:02:45.1]} 7... c5 {[%clk 0:02:40.1]} 8. b3 {[%clk
0:02:34.4]} 8... b6 {[%clk 0:02:37.9]} 9. Bb2 {[%clk 0:02:32.9]} 9... Bb7 {[%clk
0:02:30.6]} 10. Ne5 {[%clk 0:02:30.5]} 10... Qc7 {[%clk 0:02:22.9]} 11. f4
{[%clk 0:02:29.2]} 11... Ne4 {[%clk 0:02:13.7]} 12. Nxe4 {[%clk 0:02:24.5]}
12... dxe4 {[%clk 0:02:13.4]} 13. c4 {[%clk 0:02:14.7]} 13... f5 {[%clk
0:02:02.4]} 14. g4 {[%clk 0:02:03.7]} 14... Nxe5 {[%clk 0:01:54.1]} 15. fxe5
{[%clk 0:01:55.5]} 15... e6 {[%clk 0:01:34.5]} 16. Qe2 {[%clk 0:01:39.8]} 16...
Rad8 {[%clk 0:01:30.7]} 17. g5 {[%clk 0:01:29]} 17... Qe7 {[%clk 0:01:22.6]} 18.
h4 {[%clk 0:01:26]} 18... h6 {[%clk 0:01:09.5]} 19. gxh6 {[%clk 0:01:12]} 19...
Bxh6 {[%clk 0:01:10.4]} 20. h5 {[%clk 0:01:11.7]} 20... Qg5 {[%clk 0:01:05.5]}
21. Kf2 {[%clk 0:00:53.2]} 21... cxd4 {[%clk 0:00:58.8]} 22. exd4 {[%clk
0:00:42.2]} 22... f4 {[%clk 0:00:56.7]} 23. Rg1 {[%clk 0:00:36.7]} 23... Qg3+
{[%clk 0:00:48.1]} 24. Kf1 {[%clk 0:00:35.7]} 24... f3 {[%clk 0:00:39.3]} 25.
Bxf3 {[%clk 0:00:33.6]} 25... Rxf3+ {[%clk 0:00:36.7]} 26. Qxf3 {[%clk
0:00:28.3]} 26... Qxf3+ {[%clk 0:00:36.6]} 0-1

[Event "Early-Titled-Tuesday-Blitz-February-20-2024"]
[Site "Chess.com"]
[Date "2024.02.20"]
[Round "9"]
[White "cristiano78"]
[Black "stratacticos"]
[Result "1-0"]
[WhiteElo "2267"]
[BlackElo "1987"]
[TimeControl "180+1"]
[EndTime "9:46:14 PST"]
[Termination "cristiano78 won by resignation"]

1. d4 {[%clk 0:03:00]} 1... Nf6 {[%clk 0:02:59.2]} 2. c4 {[%clk 0:03:00]} 2...
c5 {[%clk 0:02:59]} 3. d5 {[%clk 0:02:59.8]} 3... b5 {[%clk 0:02:58.7]} 4. cxb5
{[%clk 0:03:00]} 4... a6 {[%clk 0:02:58.6]} 5. bxa6 {[%clk 0:03:00.8]} 5... e6
{[%clk 0:02:58.3]} 6. Nc3 {[%clk 0:03:01.7]} 6... Nxd5 {[%clk 0:02:57.6]} 7.
Nxd5 {[%clk 0:03:01.7]} 7... exd5 {[%clk 0:02:57.6]} 8. Qxd5 {[%clk 0:03:01.9]}
8... Nc6 {[%clk 0:02:57.9]} 9. e4 {[%clk 0:03:01.5]} 9... Be7 {[%clk 0:02:57.7]}
10. Nf3 {[%clk 0:02:59.5]} 10... O-O {[%clk 0:02:57.1]} 11. Bd2 {[%clk
0:02:58.1]} 11... Rxa6 {[%clk 0:02:48.8]} 12. Bxa6 {[%clk 0:02:55.1]} 12... Bxa6
{[%clk 0:02:48.5]} 13. Bc3 {[%clk 0:02:54]} 13... Qb6 {[%clk 0:02:42.4]} 14. Nd2
{[%clk 0:02:33.6]} 14... Qb5 {[%clk 0:02:38.7]} 15. O-O-O {[%clk 0:02:26.6]}
15... d6 {[%clk 0:02:35]} 16. f4 {[%clk 0:02:20]} 16... Qa4 {[%clk 0:02:33.3]}
17. Qb3 {[%clk 0:02:16.5]} 17... Qxb3 {[%clk 0:02:15.2]} 18. Nxb3 {[%clk
0:02:15.9]} 18... f6 {[%clk 0:02:03.9]} 19. Rhe1 {[%clk 0:02:13.3]} 19... Ra8
{[%clk 0:01:55.5]} 20. e5 {[%clk 0:02:02.1]} 20... dxe5 {[%clk 0:01:46.5]} 21.
fxe5 {[%clk 0:01:59.8]} 21... fxe5 {[%clk 0:01:46.3]} 22. Bxe5 {[%clk
0:01:59.3]} 22... Nxe5 {[%clk 0:01:45.9]} 23. Rxe5 {[%clk 0:01:58.7]} 23... Kf7
{[%clk 0:01:41.6]} 24. Nxc5 {[%clk 0:01:51.1]} 24... Bb5 {[%clk 0:01:32.6]} 25.
a4 {[%clk 0:01:42.1]} 25... Bc6 {[%clk 0:01:27.5]} 26. b4 {[%clk 0:01:38.4]}
26... Bxc5 {[%clk 0:01:19.7]} 27. Rxc5 {[%clk 0:01:36.8]} 27... Bxa4 {[%clk
0:01:19.5]} 28. Rf1+ {[%clk 0:01:35.5]} 28... Kg8 {[%clk 0:01:16.1]} 29. Ra5
{[%clk 0:01:33.1]} 29... Rc8+ {[%clk 0:01:15.5]} 30. Kb1 {[%clk 0:01:31.7]}
30... Be8 {[%clk 0:01:14.6]} 31. Rc5 {[%clk 0:01:27.5]} 31... Bg6+ {[%clk
0:01:12.8]} 32. Ka1 {[%clk 0:01:25.9]} 32... Ra8+ {[%clk 0:01:11.6]} 33. Kb2
{[%clk 0:01:26.1]} 33... h6 {[%clk 0:01:08.6]} 34. Ra1 {[%clk 0:01:22.1]} 34...
Rb8 {[%clk 0:01:07.2]} 35. Kc3 {[%clk 0:01:21.6]} 35... Kh7 {[%clk 0:01:04.3]}
36. Ra7 {[%clk 0:01:19.4]} 36... Rd8 {[%clk 0:00:20.5]} 37. Rcc7 {[%clk
0:01:17]} 37... Rd3+ {[%clk 0:00:19.2]} 38. Kc4 {[%clk 0:01:15]} 1-0

[Event "Early-Titled-Tuesday-Blitz-February-20-2024"]
[Site "Chess.com"]
[Date "2024.02.20"]
[Round "9"]
[White "carokannlover213"]
[Black "Mops_2004"]
[Result "0-1"]
[WhiteElo "2841"]
[BlackElo "2745"]
[TimeControl "180+1"]
[EndTime "9:46:17 PST"]
[Termination "Mops_2004 won on time"]

1. e4 {[%clk 0:02:55.9]} 1... g6 {[%clk 0:02:59.7]} 2. d4 {[%clk 0:02:55.8]}
2... Bg7 {[%clk 0:02:59.7]} 3. Nc3 {[%clk 0:02:56.5]} 3... d6 {[%clk 0:02:59.3]}
4. Be3 {[%clk 0:02:57.1]} 4... a6 {[%clk 0:02:59.7]} 5. g4 {[%clk 0:02:57.5]}
5... Nd7 {[%clk 0:02:58.6]} 6. h4 {[%clk 0:02:55.3]} 6... c5 {[%clk 0:02:55.1]}
7. h5 {[%clk 0:02:52.1]} 7... Qb6 {[%clk 0:02:39.8]} 8. h6 {[%clk 0:02:35.6]}
8... Bxd4 {[%clk 0:02:38.8]} 9. Nd5 {[%clk 0:02:34]} 9... Qa5+ {[%clk
0:02:21.4]} 10. b4 {[%clk 0:02:31.9]} 10... Qd8 {[%clk 0:02:16.3]} 11. Bxd4
{[%clk 0:02:30.5]} 11... cxd4 {[%clk 0:02:16.7]} 12. Qxd4 {[%clk 0:02:31.4]}
12... Ngf6 {[%clk 0:02:12]} 13. Qc3 {[%clk 0:02:17.1]} 13... O-O {[%clk
0:02:04.9]} 14. g5 {[%clk 0:02:16.3]} 14... Ne8 {[%clk 0:02:04.4]} 15. f4 {[%clk
0:01:45.2]} 15... b5 {[%clk 0:02:02.3]} 16. f5 {[%clk 0:01:36.2]} 16... e6
{[%clk 0:01:45.9]} 17. Nf4 {[%clk 0:00:46.8]} 17... Qxg5 {[%clk 0:01:38.3]} 18.
fxe6 {[%clk 0:00:47]} 18... Qxf4 {[%clk 0:01:32.3]} 19. e7 {[%clk 0:00:40.1]}
19... Qxe4+ {[%clk 0:01:26.6]} 20. Kf2 {[%clk 0:00:31.7]} 20... Qxe7 {[%clk
0:01:25.9]} 21. Bg2 {[%clk 0:00:29.2]} 21... Ra7 {[%clk 0:01:24.1]} 22. Nf3
{[%clk 0:00:26.9]} 22... Rc7 {[%clk 0:01:24]} 23. Qd2 {[%clk 0:00:27.3]} 23...
Nef6 {[%clk 0:01:22.4]} 24. Rae1 {[%clk 0:00:27.6]} 24... Ne5 {[%clk 0:01:21.4]}
25. Qd4 {[%clk 0:00:21.1]} 25... Rxc2+ {[%clk 0:01:18.2]} 26. Kg3 {[%clk
0:00:20.6]} 26... Bb7 {[%clk 0:01:14.8]} 27. Rhf1 {[%clk 0:00:10.1]} 27... Rxg2+
{[%clk 0:01:12.9]} 28. Kxg2 {[%clk 0:00:09.9]} 28... Qd8 {[%clk 0:01:05.3]} 29.
Kg3 {[%clk 0:00:04]} 29... Nh5+ {[%clk 0:01:03.7]} 30. Kh2 {[%clk 0:00:01.2]}
30... Nxf3+ {[%clk 0:01:01.7]} 31. Rxf3 {[%clk 0:00:01.6]} 31... Bxf3 {[%clk
0:01:02.5]} 32. Rf1 {[%clk 0:00:02.1]} 32... Qf6 {[%clk 0:01:00.3]} 0-1

[Event "Early-Titled-Tuesday-Blitz-February-20-2024"]
[Site "Chess.com"]
[Date "2024.02.20"]
[Round "9"]
[White "cukin84"]
[Black "ikhasu"]
[Result "0-1"]
[WhiteElo "2239"]
[BlackElo "2449"]
[TimeControl "180+1"]
[EndTime "9:46:17 PST"]
[Termination "ikhasu won by resignation"]

1. e4 {[%clk 0:03:00.9]} 1... e5 {[%clk 0:02:48]} 2. Nf3 {[%clk 0:02:59.5]} 2...
Nc6 {[%clk 0:02:47.8]} 3. c3 {[%clk 0:02:57.8]} 3... Nf6 {[%clk 0:02:46.1]} 4.
d4 {[%clk 0:02:57.2]} 4... Nxe4 {[%clk 0:02:46.3]} 5. d5 {[%clk 0:02:57.1]} 5...
Bc5 {[%clk 0:02:45.7]} 6. dxc6 {[%clk 0:02:56.3]} 6... Nxf2 {[%clk 0:02:43.9]}
7. Qd5 {[%clk 0:02:51.5]} 7... Bb6 {[%clk 0:02:42.2]} 8. Rg1 {[%clk 0:02:37.8]}
8... dxc6 {[%clk 0:02:32.6]} 9. Qxd8+ {[%clk 0:02:30]} 9... Kxd8 {[%clk
0:02:32.6]} 10. Bc4 {[%clk 0:02:17.5]} 10... Bf5 {[%clk 0:02:22.1]} 11. Rf1
{[%clk 0:02:15.1]} 11... Nd3+ {[%clk 0:02:17.6]} 12. Ke2 {[%clk 0:02:08.8]}
12... Nxc1+ {[%clk 0:02:14]} 13. Rxc1 {[%clk 0:02:08]} 13... f6 {[%clk 0:02:13]}
14. Rd1+ {[%clk 0:02:04.2]} 14... Ke7 {[%clk 0:02:13.2]} 15. Nbd2 {[%clk
0:02:03.2]} 15... g5 {[%clk 0:02:12.7]} 16. Bd3 {[%clk 0:01:52]} 16... Be6
{[%clk 0:02:08]} 17. Ne4 {[%clk 0:01:44.8]} 17... g4 {[%clk 0:01:56.1]} 18. Nh4
{[%clk 0:01:43.7]} 18... f5 {[%clk 0:01:53.3]} 19. Ng5 {[%clk 0:01:43.1]} 19...
e4 {[%clk 0:01:53.5]} 20. Nxe6 {[%clk 0:01:34.7]} 20... exd3+ {[%clk 0:01:52.9]}
21. Rxd3 {[%clk 0:01:34.9]} 21... Kxe6 {[%clk 0:01:53.1]} 22. Rad1 {[%clk
0:01:32.5]} 22... Rae8 {[%clk 0:01:51.7]} 23. Rd7 {[%clk 0:01:23]} 23... Kf6+
{[%clk 0:01:46.3]} 24. Kf1 {[%clk 0:01:21.1]} 24... f4 {[%clk 0:01:36.1]} 25. g3
{[%clk 0:01:10]} 25... f3 {[%clk 0:01:34.9]} 26. a4 {[%clk 0:00:53.8]} 26... a5
{[%clk 0:01:27.3]} 27. b4 {[%clk 0:00:53.4]} 27... Re2 {[%clk 0:01:26.6]} 28.
bxa5 {[%clk 0:00:38]} 28... Bc5 {[%clk 0:01:11.4]} 29. R1d2 {[%clk 0:00:28.6]}
29... Rhe8 {[%clk 0:01:07.7]} 30. Rd1 {[%clk 0:00:16.4]} 30... Rxh2 {[%clk
0:01:01.7]} 31. Nxf3 {[%clk 0:00:10.6]} 31... gxf3 {[%clk 0:01:00.1]} 32. R7d6+
{[%clk 0:00:09.2]} 32... cxd6 {[%clk 0:00:59.7]} 0-1